bitfinex-derivatives/quotes_BTCF0:USTF0_20240830
["timestamp","ask_amount","ask_price","bid_price","bid_amount"]
[1725027695898,0.555329,59142.0,59141.0,0.10018733]
[1725027696100,0.084546,59130.0,59128.0,0.1566946]
[1725027696301,0.084555,59124.0,59117.0,0.150281]
[1725027696508,0.575355,59124.0,59117.0,0.150281]
[1725027696704,1.682755,59124.0,59118.0,0.00016997]
[1725027696908,0.084562,59119.0,59118.0,0.00016997]
[1725027697110,0.4608,59119.0,59100.0,0.3608]
[1725027697405,0.084584,59104.0,59096.0,0.084595]
[1725027697701,0.084578,59108.0,59098.0,0.084591]
[1725027697908,0.3608,59112.0,59098.0,0.084591]
[1725027698203,0.3608,59107.0,59094.0,0.3608]
[1725027698410,0.3608,59097.0,59089.0,0.3608]
[1725027698706,0.084599,59093.0,59089.0,0.3608]
[1725027698903,0.084599,59093.0,59080.0,0.3608]
[1725027699205,0.3608,59091.0,59080.0,0.3608]
[1725027699404,0.3608,59095.0,59088.0,0.084605]
[1725027699610,0.3608,59095.0,59086.0,0.3608]
[1725027699808,0.3608,59095.0,59086.0,0.445408]
[1725027700009,0.0848458,59099.0,59086.0,0.445408]
[1725027700198,0.0002538,59099.0,59092.0,0.3608]
[1725027701209,0.0002538,59099.0,59098.0,0.3608]
[1725027701709,0.38767185,59116.0,59098.0,0.3608]
[1725027701907,0.48767185,59116.0,59105.0,0.3608]
[1725027702106,0.3608,59116.0,59105.0,0.3608]
[1725027702313,0.3808,59116.0,59105.0,0.3608]
[1725027702696,0.4710538,59116.0,59105.0,0.3610538]
[1725027702903,0.1102538,59116.0,59105.0,0.3610538]
[1725027703200,0.1102538,59116.0,59111.0,0.7216]
[1725027703400,0.0002538,59116.0,59114.0,0.084569]
[1725027705298,0.0002538,59116.0,59115.0,0.50748]
[1725027705612,0.445335,59138.0,59115.0,0.51594833]
[1725027705812,0.3608,59132.0,59116.0,0.445366]
[1725027706111,0.084549,59128.0,59123.0,0.3608]
[1725027706299,0.214549,59128.0,59123.0,0.3608]
[1725027706514,0.13,59128.0,59123.0,0.3608]
[1725027706702,0.13,59128.0,59123.0,0.7216]
[1725027706902,0.13,59128.0,59127.0,0.084551]
[1725027707104,0.0002538,59131.0,59124.0,0.2489]
[1725027707303,0.0302538,59131.0,59128.0,0.445349]
[1725027707503,0.0302538,59131.0,59130.0,0.084546]
[1725027707703,0.44532,59149.0,59129.0,0.18276]
[1725027707704,0.44532,59149.0,59137.0,0.084535]
[1725027707905,0.44532,59149.0,59129.0,0.18276]
[1725027707906,0.11,59149.0,59148.0,0.445321]
[1725027708106,0.36324001,59172.0,59148.0,0.3608]
[1725027708328,0.36324001,59172.0,59146.0,0.43]
[1725027708329,0.08,59172.0,59161.0,0.3608]
[1725027708614,0.084486,59173.0,59168.0,0.3608]
[1725027708810,0.00025359,59176.0,59169.0,0.3608]
[1725027709521,0.00025359,59176.0,59174.0,0.3608]
[1725027709706,0.00025359,59176.0,59165.0,0.00025359]
[1725027709707,0.084485,59173.0,59169.0,0.3608]
[1725027710104,0.03,59173.0,59169.0,0.3608]
[1725027710310,0.03,59173.0,59165.0,0.00025359]
[1725027710311,0.3608,59170.0,59165.0,0.00025359]
[1725027710511,0.084494,59167.0,59165.0,0.00025359]
[1725027710811,0.134494,59167.0,59165.0,0.00025359]
[1725027711012,0.641534,59167.0,59165.0,0.00025359]
[1725027711215,0.734494,59167.0,59165.0,0.00025359]
[1725027711423,0.734494,59167.0,59150.0,0.3608]
[1725027711424,0.084508,59157.0,59150.0,0.3608]
[1725027711615,0.084516,59152.0,59150.0,0.3608]
[1725027711818,0.114516,59152.0,59150.0,0.3608]
[1725027712416,0.50716,59151.0,59150.0,0.3608]
[1725027712617,0.084523,59146.0,59145.0,0.00025359]
[1725027712818,1.155323,59146.0,59145.0,0.00025359]
[1725027713118,0.11,59146.0,59145.0,0.44557859]
[1725027713508,0.11,59146.0,59145.0,0.00025359]
[1725027713713,1.21724,59146.0,59145.0,0.00025359]
[1725027713913,1.301763,59146.0,59145.0,0.00025359]
[1725027715419,1.747086,59146.0,59145.0,5.9e-07]
[1725027715927,1.386286,59146.0,59145.0,5.9e-07]
[1725027716618,1.301763,59146.0,59145.0,5.9e-07]
[1725027718815,1.470809,59146.0,59145.0,5.9e-07]
[1725027719019,0.084537,59137.0,59123.0,0.0039]
[1725027719216,0.084559,59122.0,59119.0,0.38801562]
[1725027719423,0.084561,59120.0,59119.0,0.38801562]
[1725027719624,0.12,59120.0,59119.0,0.445362]
[1725027720326,0.00025359,59125.0,59119.0,0.7216]
[1725027720515,0.05025359,59125.0,59119.0,0.3608]
[1725027721215,0.05025359,59125.0,59121.0,0.084559]
[1725027721418,0.05025359,59125.0,59124.0,0.3608]
[1725027721620,0.05025359,59125.0,59124.0,0.445355]
[1725027722029,0.08,59131.0,59130.0,0.084546]
[1725027722226,0.09,59131.0,59130.0,0.445346]
[1725027722419,0.084522,59147.0,59130.0,0.9608]
[1725027722616,0.12,59147.0,59143.0,0.7216]
[1725027722820,0.084526,59144.0,59143.0,0.7216]
[1725027723016,0.084526,59144.0,59131.0,0.1852]
[1725027723017,0.084529,59142.0,59138.0,0.00025359]
[1725027723229,0.169066,59139.0,59138.0,0.00025359]
[1725027723524,0.204533,59139.0,59138.0,0.00025359]
[1725027723720,1.672613,59139.0,59138.0,0.00025359]
[1725027724042,1.311813,59139.0,59138.0,0.00025359]
[1725027724524,0.084553,59126.0,59123.0,0.1852]
[1725027724721,0.12,59126.0,59125.0,0.084552]
[1725027725318,0.12,59126.0,59124.0,0.1332]
[1725027725524,0.084553,59125.0,59124.0,0.1332]
[1725027725718,0.084553,59125.0,59123.0,0.1852]
[1725027725719,0.084555,59124.0,59123.0,0.1852]
[1725027725918,0.084555,59124.0,59119.0,0.36105359]
[1725027725919,0.9882,59124.0,59119.0,0.00025359]
[1725027726124,0.169122,59120.0,59119.0,0.00025359]
[1725027726320,0.289122,59120.0,59119.0,0.00025359]
[1725027726527,1.396562,59120.0,59119.0,0.00025359]
[1725027727221,1.396562,59120.0,59087.0,0.3608]
[1725027727222,1.22744,59120.0,59087.0,0.3608]
[1725027727420,0.3608,59113.0,59105.0,0.084581]
[1725027727630,0.084577,59109.0,59103.0,0.084585]
[1725027727924,0.084577,59109.0,59102.0,0.3608]
[1725027727925,0.11,59109.0,59108.0,0.3608]
[1725027728128,0.11,59109.0,59108.0,0.445378]
[1725027728334,0.11,59109.0,59108.0,1.552938]
[1725027728532,0.00025359,59114.0,59113.0,0.084571]
[1725027728831,0.00025359,59114.0,59113.0,0.3608]
[1725027729324,0.00025359,59114.0,59113.0,0.445371]
[1725027729718,0.00025359,59114.0,59113.0,0.3608]
[1725027730118,0.05025359,59114.0,59108.0,0.3608]
[1725027730536,0.084576,59109.0,59108.0,0.3608]
[1725027730734,0.134576,59109.0,59099.0,0.3608]
[1725027731028,0.084589,59100.0,59099.0,0.3608]
[1725027731332,0.05,59100.0,59099.0,0.3608]
[1725027732638,0.08,59106.0,59099.0,0.3608]
[1725027732932,0.00025359,59114.0,59105.0,0.3608]
[1725027733129,0.084548,59129.0,59118.0,0.084563]
[1725027733326,0.084548,59129.0,59106.0,0.39282]
[1725027733327,0.3608,59125.0,59116.0,0.3608]
[1725027733531,0.11,59125.0,59116.0,0.3608]
[1725027733828,0.084556,59123.0,59116.0,0.3608]
[1725027734131,0.194556,59123.0,59122.0,0.3608]
[1725027734336,0.11,59123.0,59122.0,0.3608]
[1725027734834,0.11,59123.0,59116.0,0.3608]
[1725027735028,0.11,59123.0,59117.0,0.18524]
[1725027735220,0.11,59123.0,59122.0,0.3608]
[1725027735734,0.2,59129.0,59122.0,0.3608]
[1725027735735,0.11082354,59129.0,59124.0,0.084555]
[1725027735934,0.02,59129.0,59128.0,0.3608]
[1725027736434,0.18,59135.0,59134.0,0.084541]
[1725027736636,0.3608,59146.0,59134.0,0.3608]
[1725027736930,0.0902538,59146.0,59140.0,0.3608]
[1725027737234,0.0902538,59146.0,59144.0,0.084525]
[1725027737441,0.0602538,59146.0,59145.0,0.445325]
[1725027737730,0.0602538,59146.0,59145.0,1.552565]
[1725027737932,0.0002538,59146.0,59145.0,1.552565]
[1725027738227,0.0002538,59146.0,59145.0,1.46804]
[1725027738435,0.0002538,59146.0,59145.0,0.54604]
[1725027739022,0.0002538,59146.0,59145.0,0.3608]
[1725027739231,0.1247768,59146.0,59145.0,0.3608]
[1725027739431,0.0402538,59146.0,59142.0,0.3608]
[1725027739624,0.0402538,59146.0,59138.0,0.54604]
[1725027739834,0.084526,59144.0,59139.0,0.18524]
[1725027740031,0.084533,59139.0,59138.0,0.3608]
[1725027740226,0.07,59139.0,59134.0,0.0002538]
[1725027740424,0.084539,59135.0,59134.0,0.0002538]
[1725027740621,0.194539,59135.0,59134.0,0.0002538]
[1725027741434,0.11,59135.0,59134.0,0.0002538]
[1725027742533,0.194539,59135.0,59134.0,0.0002538]
[1725027743535,0.27708964,59135.0,59134.0,0.0002538]
[1725027743838,0.194539,59135.0,59134.0,0.0002538]
[1725027744025,0.11,59135.0,59134.0,0.0002538]
[1725027744225,0.11,59135.0,59134.0,0.4455948]
[1725027744531,0.11,59135.0,59134.0,0.3610538]
[1725027745238,0.11,59135.0,59134.0,0.4455948]
[1725027745530,0.194539,59135.0,59134.0,0.3610538]
[1725027746142,0.194539,59135.0,59134.0,0.0002538]
[1725027746525,0.279078,59135.0,59134.0,0.3610538]
[1725027746825,0.279078,59135.0,59134.0,0.0002538]
[1725027747034,0.194539,59135.0,59134.0,0.0002538]
[1725027748033,0.786398,59135.0,59134.0,0.0002538]
[1725027748343,1.21732,59135.0,59112.0,0.0045]
[1725027748640,0.3608,59120.0,59102.0,0.3647]
[1725027748836,0.4708,59120.0,59116.0,0.084566]
[1725027749228,0.4708,59120.0,59113.0,0.3608]
[1725027749229,0.11,59120.0,59118.0,0.3608]
[1725027749431,0.084571,59113.0,59112.0,0.273132]
[1725027749635,0.144571,59113.0,59112.0,0.18856]
[1725027749837,0.06,59113.0,59107.0,0.0002538]
[1725027750030,0.06,59113.0,59112.0,0.084572]
[1725027750433,0.06,59113.0,59111.0,0.3608]
[1725027750640,0.084572,59112.0,59111.0,0.3608]
[1725027750841,0.194572,59112.0,59111.0,0.3608]
[1725027751045,0.084578,59108.0,59107.0,0.0002538]
[1725027751339,0.194578,59108.0,59107.0,0.0002538]
[1725027751731,0.11,59108.0,59107.0,0.3610538]
[1725027751935,0.11,59108.0,59107.0,0.4456328]
[1725027752344,0.11,59108.0,59107.0,0.9531928]
[1725027752643,0.11,59108.0,59107.0,1.5531928]
[1725027753036,0.52805852,59122.0,59107.0,0.8686138]
[1725027753247,0.084568,59115.0,59112.0,0.3608]
[1725027753441,0.253734,59108.0,59107.0,0.0002538]
[1725027753644,0.084586,59103.0,59098.0,0.3608]
[1725027753940,0.084586,59103.0,59098.0,0.7216]
[1725027753941,0.13,59103.0,59098.0,0.7216]
[1725027754442,0.084591,59099.0,59098.0,0.7216]
[1725027754746,0.13,59099.0,59092.0,0.3608]
[1725027755041,0.084606,59088.0,59087.0,0.3608]
[1725027755241,0.134606,59088.0,59087.0,0.3608]
[1725027756432,0.084616,59081.0,59080.0,0.3608]
[1725027756636,0.144616,59081.0,59080.0,0.3608]
[1725027757541,0.144616,59081.0,59067.0,0.084635]
[1725027757542,0.4208,59081.0,59067.0,0.3608]
[1725027757745,0.084624,59076.0,59072.0,0.3608]
[1725027758048,0.084626,59075.0,59072.0,0.3608]
[1725027758241,0.084626,59075.0,59067.0,0.3608]
[1725027758242,0.084634,59069.0,59067.0,0.3608]
[1725027758548,0.05,59069.0,59067.0,0.3608]
[1725027759142,0.0002538,59074.0,59068.0,0.50788]
[1725027759443,0.0002538,59074.0,59067.0,0.9608]
[1725027759444,0.0002538,59074.0,59073.0,0.3608]
[1725027759747,0.0002538,59074.0,59067.0,0.3608]
[1725027759944,0.0102538,59074.0,59067.0,0.3608]
[1725027760145,0.0002538,59074.0,59067.0,0.3608]
[1725027760443,0.0002538,59074.0,59073.0,0.3608]
[1725027761442,0.3647,59101.0,59073.0,1.54875547]
[1725027761636,0.11,59095.0,59088.0,0.3608]
[1725027761835,0.11,59095.0,59094.0,0.3608]
[1725027762145,0.11,59095.0,59088.0,0.3608]
[1725027762538,0.11,59095.0,59094.0,0.3608]
[1725027763548,0.11,59095.0,59094.0,0.4538583]
[1725027763740,0.11,59095.0,59094.0,1.7502183]
[1725027763945,0.0002538,59100.0,59094.0,1.6656203]
[1725027764249,0.1202538,59100.0,59099.0,0.3608]
[1725027764454,0.00256,59128.0,59117.0,0.084565]
[1725027764654,0.08456,59121.0,59117.0,0.3608]
[1725027764856,0.08456,59121.0,59104.0,0.3608]
[1725027764857,0.084582,59105.0,59104.0,0.3608]
[1725027765146,0.084582,59105.0,59102.0,0.3608]
[1725027765147,0.06,59105.0,59102.0,0.3608]
[1725027765540,0.084585,59103.0,59102.0,0.3608]
[1725027765748,0.184585,59103.0,59102.0,0.3608]
[1725027766046,0.1,59103.0,59098.0,0.0002538]
[1725027766250,0.084591,59099.0,59098.0,0.0002538]
[1725027766450,0.164591,59099.0,59098.0,0.0002538]
[1725027766649,1.356822,59099.0,59098.0,0.0002538]
[1725027766836,1.033031,59099.0,59098.0,0.0002538]
[1725027767040,1.717622,59099.0,59098.0,0.0002538]
[1725027767240,1.633031,59099.0,59098.0,8e-07]
[1725027767458,0.4408,59099.0,59098.0,8e-07]
[1725027767844,0.08,59099.0,59098.0,0.0845928]
[1725027768236,0.05,59099.0,59098.0,0.0845928]
[1725027768750,0.05,59099.0,59098.0,0.9530328]
[1725027768951,0.05,59099.0,59098.0,1.3138328]
[1725027769139,0.05,59099.0,59098.0,1.5025128]
[1725027769341,0.084572,59112.0,59099.0,0.084589]
[1725027769541,0.1202538,59109.0,59105.0,0.3608]
[1725027769844,0.1202538,59109.0,59107.0,0.084579]
[1725027770243,0.1202538,59109.0,59105.0,0.3608]
[1725027770558,0.1202538,59109.0,59108.0,0.445378]
[1725027770742,0.0002538,59109.0,59108.0,0.3608]
[1725027771244,0.0302538,59109.0,59108.0,0.54948]
[1725027773249,0.0302538,59109.0,59108.0,1.741618]
[1725027773459,0.3608,59122.0,59112.0,0.084572]
[1725027773650,0.4808,59122.0,59115.0,0.3608]
[1725027773845,0.084561,59120.0,59115.0,0.3608]
[1725027774055,0.13,59120.0,59115.0,0.3608]
[1725027775056,0.084563,59119.0,59115.0,0.3608]
[1725027775249,0.084566,59116.0,59115.0,0.3608]
[1725027775552,0.154566,59116.0,59115.0,0.3608]
[1725027776052,0.07,59116.0,59115.0,0.3608]
[1725027777042,0.07,59116.0,59115.0,1.46828]
[1725027777247,0.07,59116.0,59115.0,0.86828]
[1725027777756,0.07,59116.0,59115.0,1.46828]
[1725027778159,0.07,59116.0,59115.0,0.3608]
[1725027778160,0.154566,59116.0,59115.0,0.3608]
[1725027778356,0.239132,59116.0,59115.0,0.3608]
[1725027779264,0.239132,59116.0,59113.0,0.19156]
[1725027779265,0.084569,59114.0,59113.0,0.19156]
[1725027779559,0.084571,59113.0,59112.0,0.0002538]
[1725027779748,0.204571,59113.0,59112.0,0.0002538]
[1725027780255,0.289142,59113.0,59112.0,0.0002538]
[1725027780563,0.373713,59113.0,59112.0,8e-07]
[1725027780961,1.481233,59113.0,59112.0,8e-07]
[1725027781159,1.565804,59113.0,59112.0,8e-07]
[1725027781664,0.373713,59113.0,59112.0,8e-07]
[1725027781850,0.45612588,59113.0,59112.0,8e-07]
[1725027782050,0.373713,59113.0,59112.0,8e-07]
[1725027782258,0.45612588,59113.0,59112.0,8e-07]
[1725027782462,0.881233,59113.0,59112.0,8e-07]
[1725027782661,0.373713,59113.0,59112.0,8e-07]
[1725027783355,0.289142,59113.0,59112.0,8e-07]
[1725027784768,0.289142,59113.0,59112.0,0.4453728]
[1725027784769,0.12,59113.0,59112.0,0.4453728]
[1725027785460,0.12,59113.0,59112.0,0.9528928]
[1725027785771,0.649942,59113.0,59112.0,8e-07]
[1725027786057,1.842033,59113.0,59112.0,8e-07]
[1725027786257,1.26814984,59113.0,59112.0,8e-07]
[1725027786460,1.86814984,59113.0,59112.0,8e-07]
[1725027786861,1.95272084,59113.0,59112.0,8e-07]
[1725027787758,0.084603,59090.0,59089.0,0.0039]
[1725027787960,0.4908,59090.0,59077.0,0.55236]
[1725027788161,0.084621,59078.0,59077.0,0.3608]
[1725027788464,0.204621,59078.0,59077.0,0.3608]
[1725027788876,0.12,59078.0,59077.0,0.3608]
[1725027789054,0.12,59078.0,59077.0,0.953222]
[1725027789556,0.12,59078.0,59077.0,0.592422]
[1725027789756,0.12,59078.0,59077.0,1.192422]
[1725027790365,0.0002538,59083.0,59082.0,0.084615]
[1725027790573,0.084582,59105.0,59082.0,0.3608]
[1725027790757,0.084582,59105.0,59095.0,0.3608]
[1725027790758,0.084588,59101.0,59095.0,0.3608]
[1725027791060,0.06,59101.0,59096.0,0.19156]
[1725027791256,0.06,59101.0,59100.0,0.3608]
[1725027791454,0.08,59107.0,59100.0,0.3608]
[1725027791455,0.084578,59108.0,59100.0,0.3608]
[1725027791757,0.084578,59108.0,59098.0,0.084592]
[1725027791758,0.0002538,59106.0,59102.0,0.3608]
[1725027791963,0.1102538,59106.0,59102.0,0.3608]
[1725027792169,0.1102538,59106.0,59105.0,0.084582]
[1725027792357,0.1102538,59106.0,59102.0,0.86836]
[1725027792852,0.0002538,59106.0,59105.0,0.084582]
[1725027793058,0.0002538,59106.0,59105.0,0.592142]
[1725027793259,0.0002538,59106.0,59105.0,1.192142]
[1725027793657,0.3608,59130.0,59105.0,1.10756]
[1725027793658,0.084555,59124.0,59105.0,1.10756]
[1725027793859,0.084555,59124.0,59104.0,0.3608]
[1725027793860,0.13,59124.0,59120.0,0.08456]
[1725027794062,0.13,59124.0,59121.0,0.19156]
[1725027794463,0.36324001,59130.0,59122.0,0.50744]
[1725027794665,0.08,59130.0,59128.0,0.3608]
[1725027794864,0.08,59130.0,59127.0,0.08455]
[1725027795077,0.0002538,59132.0,59128.0,0.55236]
[1725027795568,0.0102538,59132.0,59128.0,0.55236]
[1725027795976,0.0102538,59132.0,59128.0,0.636909]
[1725027796177,0.0002538,59132.0,59131.0,0.084545]
[1725027796481,0.0002538,59132.0,59129.0,0.3608]
[1725027796688,0.0002538,59132.0,59127.0,0.00836833]
[1725027796880,0.084545,59131.0,59130.0,0.19152]
[1725027797077,0.084552,59126.0,59115.0,0.57236]
[1725027797291,0.084559,59121.0,59109.0,0.19152]
[1725027797588,0.194559,59121.0,59109.0,0.19152]
[1725027797890,0.27720093,59121.0,59109.0,0.19152]
[1725027798091,0.194559,59121.0,59109.0,0.19152]
[1725027798291,0.194559,59121.0,59103.0,0.3608]
[1725027798292,1.21744,59121.0,59103.0,0.3608]
[1725027798593,0.084583,59104.0,59103.0,0.3608]
[1725027798894,0.134583,59104.0,59099.0,0.40304]
[1725027799098,0.084589,59100.0,59099.0,0.21152]
[1725027799293,0.505389,59100.0,59099.0,0.21152]
[1725027799697,0.485389,59100.0,59099.0,0.21152]
[1725027799887,0.4008,59100.0,59095.0,0.084596]
[1725027800084,0.4008,59100.0,59094.0,0.0002538]
[1725027800295,0.04,59100.0,59094.0,0.0002538]
[1725027801099,0.084591,59099.0,59094.0,0.0002538]
[1725027801302,0.204591,59099.0,59094.0,0.0002538]
[1725027801486,0.12,59099.0,59094.0,0.0002538]
[1725027801684,0.12,59099.0,59094.0,0.00891033]
[1725027801887,0.12,59099.0,59098.0,0.445392]
[1725027802087,0.12,59099.0,59098.0,0.45378452]
[1725027802294,0.12,59099.0,59098.0,1.56142452]
[1725027802593,0.0002538,59105.0,59104.0,0.084583]
[1725027802899,0.0002538,59105.0,59104.0,0.445383]
[1725027803113,0.0002538,59105.0,59104.0,1.552943]
[1725027804699,0.0002538,59105.0,59104.0,0.952943]
[1725027805018,0.0502538,59105.0,59104.0,0.3608]
[1725027805198,0.0502538,59105.0,59098.0,0.3608]
[1725027805687,0.084585,59103.0,59098.0,0.3608]
[1725027805883,0.154585,59103.0,59098.0,0.7216]
[1725027806088,0.084588,59101.0,59098.0,0.7216]
[1725027806292,0.06,59101.0,59098.0,0.7216]
[1725027806492,0.06,59101.0,59094.0,0.1890938]
[1725027806493,0.084596,59095.0,59094.0,0.1890938]
[1725027806700,0.154596,59095.0,59094.0,0.1890938]
[1725027806885,0.154596,59095.0,59094.0,0.0002538]
[1725027807087,0.154596,59095.0,59071.0,0.0039]
[1725027807088,0.084622,59077.0,59071.0,0.0039]
[1725027807296,0.084622,59077.0,59076.0,0.084624]
[1725027807297,0.05,59077.0,59076.0,0.084624]
[1725027807502,0.05,59077.0,59073.0,0.3608]
[1725027807686,0.05,59077.0,59073.0,0.36932176]
[1725027807892,0.05,59077.0,59073.0,0.45394876]
[1725027808093,0.05,59077.0,59073.0,0.36932176]
[1725027808499,0.05,59077.0,59073.0,0.3608]
[1725027808801,0.134623,59077.0,59073.0,0.3608]
[1725027809101,0.05,59077.0,59073.0,0.3608]
[1725027809395,0.05,59077.0,59073.0,0.445428]
[1725027809600,0.05,59077.0,59073.0,0.3608]
[1725027809794,0.0494924,59077.0,59076.0,0.86743245]
[1725027810396,0.0002538,59081.0,59080.0,0.084618]
[1725027810589,0.0002538,59081.0,59080.0,0.445418]
[1725027810788,0.0002538,59081.0,59080.0,1.553218]
[1725027811604,0.0002538,59081.0,59080.0,1.742098]
[1725027811897,0.0002538,59081.0,59080.0,0.54968]
[1725027812099,0.1002538,59081.0,59080.0,0.54968]
[1725027812497,0.0002538,59081.0,59080.0,1.742098]
[1725027812697,0.0002538,59081.0,59080.0,1.826716]
[1725027812902,0.0002538,59081.0,59080.0,1.742098]
[1725027813100,0.0002538,59081.0,59080.0,1.826716]
[1725027813602,0.0002538,59081.0,59080.0,1.742098]
[1725027813800,0.0002538,59081.0,59080.0,1.951016]
[1725027813999,0.445382,59106.0,59080.0,1.866398]
[1725027814302,0.084582,59105.0,59095.0,0.445396]
[1725027814506,0.194582,59105.0,59095.0,0.445396]
[1725027814698,0.194582,59105.0,59095.0,0.3608]
[1725027814907,0.11,59105.0,59103.0,0.3608]
[1725027815203,0.11,59105.0,59104.0,0.634263]
[1725027815404,0.0002538,59110.0,59104.0,0.54968]
[1725027815594,0.1202538,59110.0,59109.0,0.3608]
[1725027815995,0.04,59110.0,59109.0,0.3608]
[1725027817197,0.04,59110.0,59109.0,0.445376]
[1725027817599,0.04,59110.0,59109.0,0.3608]
[1725027817800,0.04,59110.0,59103.0,0.3608]
[1725027818001,0.08458,59107.0,59103.0,0.3608]
[1725027818218,0.084583,59104.0,59103.0,0.3608]
[1725027818404,0.204583,59104.0,59103.0,0.3608]
[1725027818811,0.084591,59099.0,59098.0,0.0002538]
[1725027819003,0.204591,59099.0,59098.0,0.0002538]
[1725027819203,0.12,59099.0,59098.0,0.0002538]
[1725027820003,0.204591,59099.0,59098.0,0.0002538]
[1725027821205,0.12,59099.0,59098.0,0.3610538]
[1725027821910,0.12,59099.0,59098.0,0.4456458]
[1725027822103,0.12,59099.0,59098.0,0.3610538]
[1725027822411,0.204591,59099.0,59098.0,0.3610538]
[1725027822604,0.204591,59099.0,59098.0,0.0002538]
[1725027822799,0.289182,59099.0,59098.0,0.0002538]
[1725027823112,1.396822,59099.0,59098.0,0.0002538]
[1725027823308,0.796822,59099.0,59098.0,0.0002538]
[1725027823504,0.712231,59099.0,59098.0,0.0002538]
[1725027823704,0.12,59099.0,59098.0,0.0848458]
[1725027825411,0.12,59099.0,59098.0,0.3610538]
[1725027826417,0.12,59099.0,59098.0,0.4456458]
[1725027826912,0.204591,59099.0,59098.0,0.3610538]
[1725027827709,0.204591,59099.0,59098.0,0.0002538]
[1725027828417,0.289182,59099.0,59098.0,0.0002538]
[1725027828713,1.481413,59099.0,59098.0,0.0002538]
[1725027828917,0.289182,59099.0,59098.0,0.0002538]
[1725027829305,0.204591,59099.0,59098.0,0.0002538]
[1725027829507,0.12,59099.0,59098.0,0.4456458]
[1725027829712,0.12,59099.0,59098.0,0.3610538]
[1725027829713,0.204591,59099.0,59098.0,0.3610538]
[1725027830507,0.289182,59099.0,59098.0,0.0002538]
[1725027830822,1.396822,59099.0,59098.0,0.0002538]
[1725027831020,0.796822,59099.0,59098.0,0.0002538]
[1725027831508,0.12,59099.0,59098.0,0.0848458]
[1725027835211,0.12,59099.0,59098.0,0.4548458]
[1725027836211,0.12,59099.0,59098.0,0.5394378]
[1725027836411,0.12,59099.0,59098.0,1.4078778]
[1725027836615,0.12,59099.0,59098.0,1.3232858]
[1725027836817,0.12,59099.0,59098.0,1.9232858]
[1725027837021,0.0002538,59115.0,59113.0,0.08457]
[1725027837221,0.1202538,59115.0,59114.0,0.445369]
[1725027838117,0.1202538,59115.0,59114.0,0.45368664]
[1725027838717,0.1202538,59115.0,59114.0,0.3608]
[1725027839122,0.1202538,59115.0,59114.0,0.445369]
[1725027839323,0.1202538,59115.0,59114.0,0.45367309]
[1725027840722,0.1202538,59115.0,59114.0,0.3608]
[1725027841025,0.7968698,59115.0,59114.0,0.3608]
[1725027841221,0.084582,59105.0,59104.0,0.3608]
[1725027841428,0.084583,59104.0,59103.0,0.00849371]
[1725027841617,0.084588,59101.0,59100.0,0.3608]
[1725027841816,0.214588,59101.0,59100.0,0.3608]
[1725027842226,0.084591,59099.0,59098.0,0.0002538]
[1725027842428,0.24726461,59099.0,59098.0,0.0002538]
[1725027843918,0.16267361,59099.0,59098.0,0.0848458]
[1725027844330,0.09959317,59099.0,59098.0,1.1924858]
[1725027844627,0.09959317,59103.0,59102.0,0.084586]
[1725027844836,0.09959317,59106.0,59102.0,1.00909053]
[1725027845321,0.09959317,59107.0,59106.0,0.084581]
[1725027845522,0.09959317,59109.0,59108.0,0.084578]
[1725027845718,0.09959317,59110.0,59109.0,0.084576]
[1725027845925,0.08302522,59111.0,59110.0,0.084575]
[1725027846119,0.0002538,59115.0,59114.0,0.084569]
[1725027846421,0.1102538,59115.0,59114.0,0.3608]
[1725027846827,0.1102538,59115.0,59114.0,0.952849]
[1725027847060,0.1102538,59115.0,59114.0,1.552849]
[1725027848818,0.08316902,59115.0,59114.0,1.637418]
[1725027849024,0.0002538,59115.0,59114.0,1.66432845]
[1725027849428,0.07526902,59121.0,59120.0,0.084561]
[1725027849627,0.09960193,59127.0,59126.0,0.084552]
[1725027849827,0.08960193,59130.0,59127.0,0.50736]
[1725027850027,0.11784251,59152.0,59131.0,0.084544]
[1725027850334,0.07,59152.0,59151.0,0.084516]
[1725027850532,0.07,59152.0,59146.0,0.3608]
[1725027850732,0.07,59152.0,59151.0,0.18508]
[1725027851034,0.07,59152.0,59151.0,0.630396]
[1725027851232,0.00025359,59157.0,59151.0,0.54588]
[1725027851433,0.07025359,59157.0,59156.0,0.445309]
[1725027851634,0.00025359,59157.0,59156.0,0.445309]
[1725027851935,0.00025359,59157.0,59156.0,0.3608]
[1725027852139,0.00025359,59157.0,59156.0,0.7574]
[1725027852727,0.00025359,59157.0,59156.0,0.841909]
[1725027852937,0.00025359,59157.0,59156.0,1.349029]
[1725027853133,0.00025359,59157.0,59156.0,1.949029]
[1725027853834,0.3608,59184.0,59163.0,0.084499]
[1725027854035,0.3608,59184.0,59171.0,0.3608]
[1725027854036,0.53672629,59184.0,59171.0,0.3608]
[1725027854338,0.084471,59183.0,59171.0,0.3608]
[1725027854528,0.084486,59172.0,59171.0,0.3608]
[1725027854729,0.084491,59169.0,59168.0,0.3608]
[1725027854935,0.4708,59169.0,59163.0,0.00025359]
[1725027855228,0.11,59169.0,59163.0,0.00025359]
[1725027855734,0.36105359,59174.0,59167.0,0.3608]
[1725027855930,0.54241609,59174.0,59167.0,0.36932122]
[1725027856444,0.54241609,59174.0,59168.0,0.084492]
[1725027856628,0.45793209,59174.0,59168.0,0.084492]
[1725027856829,0.084492,59168.0,59167.0,0.36932122]
[1725027857141,0.084492,59168.0,59163.0,0.00025359]
[1725027857142,0.4908,59168.0,59163.0,0.00025359]
[1725027857342,0.13,59168.0,59166.0,0.185]
[1725027857633,0.13,59168.0,59167.0,0.3608]
[1725027858036,0.13,59168.0,59167.0,0.445293]